bitfinex-derivatives/quotes_BTCF0:USTF0_20240910
["timestamp","ask_amount","ask_price","bid_price","bid_amount"]
[1725978955618,0.001,56901.0,56900.0,0.087868]
[1725978956513,0.001,56901.0,56887.0,0.97382365]
[1725978956716,0.371,56901.0,56894.0,0.087877]
[1725978957015,0.087875,56896.0,56887.0,0.97382365]
[1725978957216,0.371,56901.0,56900.0,0.002]
[1725978957418,0.458867,56901.0,56900.0,0.002]
[1725978957617,0.457867,56901.0,56900.0,0.002]
[1725978957915,0.37,56901.0,56897.0,0.087872]
[1725978958109,0.001,56901.0,56894.0,0.003]
[1725978958317,0.088867,56901.0,56894.0,0.003]
[1725978958614,0.001,56901.0,56900.0,0.004]
[1725978958816,0.001,56901.0,56900.0,0.091869]
[1725978959013,0.088867,56901.0,56900.0,0.091869]
[1725978959209,0.22,56907.0,56900.0,0.091869]
[1725978959413,0.22,56907.0,56894.0,0.01696947]
[1725978959414,0.087859,56906.0,56898.0,0.087871]
[1725978959616,0.001,56901.0,56900.0,0.087869]
[1725978960415,0.001,56901.0,56900.0,0.089869]
[1725978960711,0.10420168,56963.0,56900.0,0.089869]
[1725978960712,0.307851,56912.0,56911.0,0.087852]
[1725978960916,0.087851,56912.0,56911.0,0.087852]
[1725978961115,0.22,56912.0,56900.0,0.002]
[1725978961303,0.22,56903.0,56902.0,0.96]
[1725978961503,0.22,56903.0,56901.0,0.087866]
[1725978961706,0.22,56903.0,56882.0,0.05219385]
[1725978961707,0.087869,56900.0,56882.0,0.05219385]
[1725978961913,0.52724,56902.0,56874.0,0.05219385]
[1725978961914,0.22,56887.0,56874.0,0.05219385]
[1725978962120,0.22,56887.0,56872.0,0.0695918]
[1725978962121,0.22,56883.0,56872.0,0.05219385]
[1725978962305,0.307896,56883.0,56874.0,0.05219385]
[1725978962613,0.22,56883.0,56876.0,0.087905]
[1725978962816,0.087893,56885.0,56873.0,0.05219385]
[1725978963022,0.087886,56889.0,56878.0,0.22]
[1725978963314,0.3218,56895.0,56886.0,0.087889]
[1725978963507,0.22,56891.0,56886.0,0.087889]
[1725978963712,0.22,56900.0,56887.0,0.22]
[1725978963916,0.22,56900.0,56880.0,0.05219385]
[1725978963917,0.066,56902.0,56901.0,0.087867]
[1725978964113,0.285,56909.0,56901.0,0.087867]
[1725978964114,0.37,56908.0,56901.0,0.087867]
[1725978964420,0.37,56908.0,56892.0,0.05219385]
[1725978964421,0.087858,56907.0,56892.0,0.05219385]
[1725978964721,0.4331,56913.0,56908.0,0.087856]
[1725978965019,0.151243,56917.0,56914.0,0.087847]
[1725978965208,0.151243,56917.0,56902.0,0.05219385]
[1725978965209,0.0634,56917.0,56902.0,0.05219385]
[1725978965407,0.008,56908.0,56907.0,0.087856]
[1725978965924,0.008,56908.0,56907.0,0.087858]
[1725978967110,0.008,56908.0,56906.0,0.05219385]
[1725978967315,0.087858,56907.0,56906.0,0.05219385]
[1725978967523,0.37,56909.0,56902.0,0.05207395]
[1725978967712,0.37,56904.0,56900.0,0.05207395]
[1725978967912,0.014,56917.0,56902.0,0.0695918]
[1725978968217,0.0608,56915.0,56910.0,0.087853]
[1725978968421,0.0608,56915.0,56910.0,0.0520776]
[1725978968615,0.0608,56915.0,56911.0,0.0520776]
[1725978969116,0.45783,56925.0,56912.0,0.0520776]
[1725978969322,0.0639,56927.0,56920.0,0.0520776]
[1725978969523,0.0639,56927.0,56919.0,0.0520776]
[1725978969524,0.37,56926.0,56919.0,0.0520776]
[1725978969824,0.087833,56923.0,56922.0,0.0520776]
[1725978970420,0.087831,56925.0,56922.0,0.087835]
[1725978970719,0.087831,56925.0,56923.0,0.1574248]
[1725978971022,0.087831,56925.0,56920.0,0.08698975]
[1725978971023,0.087831,56925.0,56924.0,0.0695918]
[1725978971216,0.087832,56924.0,56923.0,0.0695918]
[1725978971914,0.087833,56923.0,56922.0,0.0695918]
[1725978972117,0.087835,56922.0,56921.0,0.0695918]
[1725978972309,0.087835,56922.0,56920.0,0.0695918]
[1725978972310,0.087836,56921.0,56920.0,0.0695918]
[1725978972514,0.087836,56921.0,56903.0,0.18628565]
[1725978972515,0.087829,56926.0,56922.0,0.087835]
[1725978972714,0.087829,56926.0,56912.0,0.37]
[1725978972715,0.006,56924.0,56923.0,0.15748144]
[1725978973015,0.006,56924.0,56920.0,0.17482775]
[1725978973016,0.087833,56923.0,56920.0,0.17482775]
[1725978973215,0.087833,56923.0,56920.0,0.08698975]
[1725978973422,0.006,56924.0,56920.0,0.08698975]
[1725978973920,0.087835,56923.0,56919.0,0.08698975]
[1725978974119,0.42387625,56927.0,56920.0,0.08698975]
[1725978974422,0.33604925,56927.0,56916.0,0.05222665]
[1725978974619,0.006,56922.0,56916.0,0.05222665]
[1725978975122,0.08783,56925.0,56922.0,0.087834]
[1725978975426,0.087835,56922.0,56919.0,0.087839]
[1725978975621,0.003,56923.0,56914.0,0.05222665]
[1725978975826,0.006,56926.0,56925.0,0.08783]
[1725978976220,0.087824,56929.0,56925.0,0.08783]
[1725978976412,0.087819,56932.0,56925.0,0.08783]
[1725978976617,0.07743798,56936.0,56917.0,0.42222665]
[1725978976817,0.07743798,56936.0,56922.0,0.37]
[1725978976818,0.0639,56936.0,56922.0,0.37]
[1725978977024,0.3832,56944.0,56940.0,0.087806]
[1725978977214,0.0647,56949.0,56937.0,0.37]
[1725978977419,0.00152,56948.0,56942.0,0.37]
[1725978977626,0.0647,56949.0,56946.0,0.087797]
[1725978977834,0.0647,56949.0,56942.0,0.087804]
[1725978977835,0.0878,56945.0,56942.0,0.087804]
[1725978978331,0.014,56944.0,56940.0,0.001]
[1725978978531,0.3218,56963.0,56943.0,0.087802]
[1725978978733,0.07706827,56970.0,56953.0,0.37]
[1725978979030,0.5366,56979.0,56958.0,0.37]
[1725978979031,0.087758,56972.0,56958.0,0.37]
[1725978979223,0.51374768,56980.0,56958.0,0.37]
[1725978979224,0.08775,56977.0,56958.0,0.37]
[1725978979529,0.087744,56981.0,56973.0,0.087756]
[1725978979735,0.087744,56981.0,56964.0,0.37]
[1725978980031,0.37,56981.0,56969.0,0.087762]
[1725978980426,0.087755,56974.0,56958.0,0.37]
[1725978980652,0.087755,56974.0,56958.0,0.38366471]
[1725978980825,0.087756,56973.0,56959.0,0.96]
[1725978981127,0.007,56962.0,56959.0,0.96]
[1725978981330,0.014,56970.0,56961.0,0.37]
[1725978981522,0.014,56970.0,56966.0,0.37]
[1725978981930,0.3218,56984.0,56973.0,0.087755]
[1725978982128,0.001,56973.0,56959.0,0.967]
[1725978982333,0.37,56968.0,56959.0,0.967]
[1725978982524,0.087766,56967.0,56961.0,0.087774]
[1725978982720,0.001,56973.0,56962.0,0.087772]
[1725978983027,0.087765,56967.0,56966.0,0.001]
[1725978983823,1.12664,56967.0,56951.0,0.01368924]
[1725978984023,1.12664,56967.0,56937.0,0.3209]
[1725978984024,0.37,56952.0,56937.0,0.08781]
[1725978984227,0.087802,56944.0,56932.0,0.0648]
[1725978984432,0.087784,56955.0,56938.0,0.37]
[1725978984624,0.1254,56966.0,56943.0,0.37]
[1725978984827,0.1254,56966.0,56932.0,0.07823987]
[1725978984828,0.087773,56962.0,56948.0,0.37]
[1725978985027,0.1254,56966.0,56953.0,0.37]
[1725978985222,0.087777,56960.0,56953.0,0.37]
[1725978985430,0.087777,56960.0,56956.0,0.087782]
[1725978985623,0.087777,56960.0,56948.0,0.37]
[1725978985834,0.087777,56960.0,56940.0,0.07090276]
[1725978985835,0.087777,56960.0,56943.0,0.37]
[1725978986033,0.087777,56960.0,56947.0,0.087796]
[1725978986034,0.087787,56953.0,56947.0,0.087796]
[1725978986231,0.087787,56953.0,56943.0,0.007]
[1725978986232,0.087793,56949.0,56944.0,0.087801]
[1725978986635,0.087793,56949.0,56945.0,0.087799]
[1725978986825,0.087786,56954.0,56946.0,0.087797]
[1725978987030,0.1264,56966.0,56943.0,0.007]
[1725978987031,0.37,56961.0,56943.0,0.007]
[1725978987224,0.37,56961.0,56943.0,0.0204317]
[1725978987225,0.087784,56955.0,56943.0,0.0204317]
[1725978987434,0.087784,56955.0,56943.0,0.007]
[1725978987435,0.37,56950.0,56943.0,0.007]
[1725978987829,0.087789,56952.0,56943.0,0.007]
[1725978988031,0.087789,56952.0,56927.0,1.047827]
[1725978988032,0.175602,56944.0,56927.0,0.96]
[1725978988339,0.087827,56928.0,56924.0,0.087831]
[1725978988636,0.087831,56925.0,56920.0,0.087837]
[1725978988837,0.087831,56925.0,56915.0,1.384998]
[1725978988838,0.37,56939.0,56918.0,0.37]
[1725978989439,0.37,56939.0,56915.0,1.384998]
[1725978989440,0.087823,56930.0,56923.0,0.087832]
[1725978989638,0.087825,56929.0,56923.0,0.087832]
[1725978989829,0.087825,56929.0,56915.0,1.384998]
[1725978990242,0.37,56939.0,56927.0,0.087826]
[1725978990442,0.37,56939.0,56918.0,0.37]
[1725978990743,0.087811,56937.0,56927.0,0.096827]
[1725978991039,0.08782,56932.0,56927.0,0.087827]
[1725978991245,0.001,56928.0,56927.0,0.087827]
[1725978992037,0.087822,56930.0,56928.0,0.087824]
[1725978992334,0.087822,56930.0,56918.0,0.38]
[1725978992335,0.087815,56935.0,56918.0,0.38]
[1725978992533,0.087815,56935.0,56928.0,0.087824]
[1725978992732,0.087817,56934.0,56928.0,0.087824]
[1725978993338,0.087818,56933.0,56918.0,0.39377645]
[1725978993533,0.37,56939.0,56918.0,0.38]
[1725978993735,0.087819,56932.0,56918.0,0.38]
[1725978993933,0.087813,56936.0,56931.0,0.087819]
[1725978994135,0.087815,56935.0,56931.0,0.087819]
[1725978994330,0.087816,56935.0,56918.0,0.38375668]
[1725978994540,0.1322,56943.0,56929.0,0.37]
[1725978994744,0.002,56935.0,56934.0,0.087815]
[1725978995044,0.002,56935.0,56934.0,1.047815]
[1725978995545,0.087808,56939.0,56925.0,0.08783]
[1725978995741,0.001,56935.0,56925.0,0.08783]
[1725978995930,0.001,56935.0,56934.0,0.087816]
[1725978996132,0.087819,56932.0,56926.0,0.96]
[1725978996337,0.087824,56930.0,56926.0,0.96]
[1725978996634,0.37,56933.0,56924.0,0.01389018]
[1725978996844,0.37,56933.0,56920.0,0.087836]
[1725978997037,0.37,56927.0,56917.0,0.087841]
[1725978997230,0.087841,56919.0,56917.0,0.087841]
[1725978997444,0.0644,56932.0,56915.0,0.01362319]
[1725978997445,0.087843,56917.0,56915.0,0.01362319]
[1725978997638,0.37,56922.0,56914.0,0.00088]
[1725978997835,0.37,56922.0,56911.0,0.08785]
[1725978997836,0.37,56916.0,56911.0,0.01393104]
[1725978998031,0.087838,56920.0,56900.0,0.37]
[1725978998032,0.37,56920.0,56900.0,0.37]
[1725978998345,0.087844,56916.0,56911.0,0.08785]
[1725978998541,0.457838,56920.0,56911.0,0.08785]
[1725978998739,0.457838,56920.0,56907.0,0.087857]
[1725978998940,0.0613,56922.0,56898.0,0.01344747]
[1725978998941,0.37,56911.0,56898.0,0.01344747]
[1725978999144,0.37,56911.0,56889.0,0.37]
[1725978999145,0.087861,56906.0,56903.0,0.087864]
[1725978999538,0.087861,56906.0,56889.0,0.37]
[1725978999741,0.087861,56906.0,56902.0,0.087865]
[1725978999942,0.37,56911.0,56895.0,0.087875]
[1725979000137,0.37,56906.0,56895.0,0.087875]
[1725979000447,0.37,56900.0,56878.0,0.0608]
[1725979000639,0.087866,56902.0,56883.0,0.37]
[1725979000836,0.087866,56902.0,56878.0,0.150002]
[1725979000837,0.37,56910.0,56904.0,0.087862]
[1725979001140,0.08785,56913.0,56911.0,0.006]
[1725979001542,0.08785,56913.0,56899.0,0.37]
[1725979001732,0.001,56900.0,56899.0,0.08787]
[1725979002043,0.08787,56899.0,56883.0,0.37]
[1725979002233,0.087872,56898.0,56890.0,0.087883]
[1725979002840,0.087872,56898.0,56879.0,0.44413292]
[1725979003445,0.37,56894.0,56879.0,0.07413292]
[1725979003654,0.37,56894.0,56879.0,0.01333292]
[1725979003835,0.087883,56891.0,56884.0,0.087893]
[1725979004236,0.087883,56891.0,56878.0,0.0621]
[1725979004237,0.37,56889.0,56878.0,0.0136395]
[1725979004439,0.37,56889.0,56869.0,0.37]
[1725979004440,0.37,56883.0,56867.0,0.05222665]
[1725979004641,0.457895,56883.0,56879.0,0.087901]
[1725979004940,0.457895,56883.0,56863.0,0.01390793]
[1725979004941,0.087906,56876.0,56863.0,0.01390793]
[1725979005242,0.37,56883.0,56867.0,0.37]
[1725979005444,0.087896,56882.0,56875.0,0.087907]
[1725979005656,0.087896,56882.0,56878.0,0.014]
[1725979005943,0.087896,56882.0,56878.0,0.101902]
[1725979006145,0.087896,56882.0,56878.0,0.014]
[1725979006852,0.001,56876.0,56867.0,0.37]
[1725979007050,0.371,56883.0,56867.0,0.37]
[1725979007051,0.371,56883.0,56872.0,0.087912]
[1725979007242,0.37,56878.0,56870.0,0.087915]
[1725979007745,0.087901,56879.0,56867.0,0.96088]
[1725979007948,0.371,56883.0,56867.0,0.96]
[1725979008338,0.100897,56882.0,56877.0,0.087903]
[1725979008543,0.100897,56882.0,56872.0,0.087911]
[1725979008544,0.37,56878.0,56872.0,0.087911]
[1725979008743,0.013,56882.0,56862.0,0.01330973]
[1725979008744,0.46791,56873.0,56862.0,0.01330973]
[1725979008950,0.025,56882.0,56855.0,0.0601]
[1725979008951,0.37,56874.0,56865.0,0.087922]
[1725979009153,0.087899,56881.0,56865.0,0.087922]
[1725979009154,0.38,56872.0,56865.0,0.087922]
[1725979009346,0.08792,56868.0,56864.0,0.087924]
[1725979009851,0.08792,56868.0,56863.0,0.01386192]
[1725979010045,0.08792,56868.0,56863.0,0.087926]
[1725979010251,0.38,56872.0,56856.0,0.97335881]
[1725979010252,0.087915,56870.0,56856.0,0.97335881]
[1725979010454,0.38,56872.0,56861.0,0.087927]
[1725979010644,0.087922,56866.0,56861.0,0.087927]
[1725979010960,0.38,56872.0,56858.0,0.087933]
[1725979011250,0.09191,56874.0,56861.0,0.087929]
[1725979011251,0.087926,56863.0,56861.0,0.087929]
[1725979011444,0.08792,56867.0,56856.0,0.01335881]
[1725979011642,0.087921,56867.0,56863.0,0.087925]
[1725979012049,0.38,56870.0,56864.0,0.087923]
[1725979012352,0.006,56872.0,56854.0,1.33]
[1725979012652,0.008,56863.0,56862.0,0.087927]
[1725979013658,0.011,56870.0,56869.0,0.087916]
[1725979013954,0.087888,56888.0,56886.0,0.08789]
[1725979014249,0.087888,56888.0,56875.0,0.37]
[1725979014453,0.087881,56892.0,56875.0,0.37]
[1725979014651,0.127,56900.0,56880.0,0.37]
[1725979014853,0.087868,56901.0,56886.0,0.37]
[1725979015047,0.087871,56899.0,56882.0,0.087895]
[1725979015251,0.087872,56898.0,56881.0,0.37]
[1725979015551,0.087865,56903.0,56886.0,0.37]
[1725979015747,0.011,56892.0,56881.0,0.37]
[1725979016149,0.011,56892.0,56891.0,0.087882]
[1725979016542,0.011,56892.0,56891.0,1.215202]
[1725979016744,0.014,56898.0,56891.0,1.49732]
[1725979016942,0.014,56898.0,56897.0,0.087873]
[1725979017347,0.087873,56897.0,56892.0,0.087881]
[1725979017656,0.003,56892.0,56891.0,0.087882]
[1725979017848,0.087883,56891.0,56878.0,0.3209]
[1725979018044,0.003,56892.0,56877.0,0.3788409]
[1725979018244,0.003,56892.0,56891.0,0.087882]
[1725979018445,0.003,56892.0,56891.0,0.615202]
[1725979018757,0.087836,56922.0,56891.0,1.12732]
[1725979018758,0.37,56915.0,56891.0,1.12732]
[1725979018949,0.37,56915.0,56895.0,0.087876]
[1725979019149,0.37,56915.0,56894.0,0.37]
[1725979019350,0.087855,56909.0,56903.0,0.087863]
[1725979019647,0.37,56915.0,56895.0,0.087876]
[1725979019648,0.087848,56914.0,56895.0,0.087876]
[1725979019852,0.087836,56922.0,56899.0,0.37]
[1725979019853,0.37,56920.0,56899.0,0.37]
[1725979020160,0.087836,56921.0,56915.0,0.087845]
[1725979020454,0.37,56921.0,56913.0,0.087848]
[1725979020667,0.087844,56916.0,56913.0,0.087848]
[1725979021356,0.37,56921.0,56915.0,0.001]
[1725979021357,0.087839,56920.0,56915.0,0.001]
[1725979022261,0.087824,56929.0,56925.0,0.08783]
[1725979022653,0.087824,56929.0,56926.0,0.087828]
[1725979022955,0.087816,56935.0,56915.0,0.002]
[1725979023161,0.37,56936.0,56930.0,0.087822]
[1725979023360,0.37,56936.0,56915.0,0.002]
[1725979023361,0.37,56936.0,56926.0,0.087827]
[1725979023561,0.003,56916.0,56915.0,0.088845]
[1725979023752,0.08781,56938.0,56915.0,1.12808]
[1725979023957,0.1294,56940.0,56915.0,1.12808]
[1725979023958,0.087816,56934.0,56929.0,0.087823]
[1725979024273,0.45779,56952.0,56932.0,0.37]
[1725979024564,0.11310168,56976.0,56930.0,0.001]
[1725979024565,0.003,56936.0,56930.0,0.001]
[1725979024955,0.003,56936.0,56931.0,0.96]
[1725979025154,0.37,56947.0,56931.0,0.96]
[1725979025155,0.003,56934.0,56931.0,0.96]
[1725979025359,0.003,56934.0,56933.0,0.087818]
[1725979026066,0.003,56934.0,56931.0,0.97366605]
[1725979026358,0.003,56934.0,56932.0,0.087819]
[1725979026562,0.003,56934.0,56931.0,0.97366605]
[1725979026563,0.003,56934.0,56933.0,0.087818]
[1725979026862,0.017,56934.0,56933.0,0.088818]
[1725979027656,0.013,56934.0,56933.0,0.087818]
[1725979028366,0.013,56934.0,56933.0,0.088818]
[1725979028367,0.014,56934.0,56933.0,0.088818]
[1725979028662,0.014,56934.0,56933.0,1.215738]
[1725979028852,0.014,56934.0,56933.0,0.615738]
[1725979029460,0.014,56934.0,56933.0,1.215738]
[1725979029756,0.014,56934.0,56933.0,1.303556]
[1725979030258,0.015,56934.0,56933.0,1.304556]
[1725979030556,0.015,56934.0,56933.0,0.089818]
[1725979030959,0.015,56934.0,56933.0,0.088818]
[1725979031159,0.0656,56946.0,56931.0,0.38366605]
[1725979031362,0.0656,56946.0,56926.0,0.087827]
[1725979031363,0.087803,56943.0,56927.0,0.087827]
[1725979031558,0.087803,56943.0,56939.0,0.087808]
[1725979031861,0.087804,56942.0,56939.0,0.087808]
[1725979032069,0.087806,56941.0,56926.0,0.37]
[1725979032269,0.087824,56930.0,56911.0,0.4317]
[1725979032462,0.37,56927.0,56913.0,0.087848]
[1725979032763,0.37,56932.0,56915.0,0.37]
[1725979032959,0.3218,56936.0,56935.0,0.087815]
[1725979033265,0.3218,56936.0,56912.0,0.07452933]
[1725979033266,0.00148,56945.0,56927.0,0.087826]
[1725979033563,0.37,56948.0,56933.0,0.001]
[1725979033564,0.008,56934.0,56933.0,0.001]
[1725979034066,0.008,56934.0,56933.0,0.088818]
[1725979034264,0.087802,56943.0,56940.0,0.087806]
[1725979034459,0.37,56948.0,56940.0,0.087806]
[1725979035861,0.087806,56941.0,56940.0,0.001]
[1725979036165,0.087799,56946.0,56945.0,0.087799]
[1725979036367,0.001,56948.0,56947.0,0.087796]
[1725979036562,0.001,56948.0,56941.0,0.37]
[1725979036563,0.087805,56941.0,56940.0,0.001]
[1725979036866,0.371,56948.0,56940.0,0.001]
[1725979037058,0.001,56948.0,56947.0,0.087796]
[1725979037568,0.001,56948.0,56940.0,0.01529738]
[1725979037758,0.087802,56944.0,56940.0,0.01529738]
[1725979037959,0.087802,56944.0,56941.0,0.087804]
[1725979038657,0.001,56946.0,56940.0,0.01329738]
[1725979038858,0.087805,56941.0,56938.0,0.08781]
[1725979039165,0.087805,56941.0,56928.0,0.3209]
[1725979039370,0.087805,56941.0,56928.0,0.01378095]
[1725979039670,0.087805,56941.0,56926.0,0.087828]
[1725979039974,0.087805,56941.0,56937.0,0.087811]
[1725979040169,0.087805,56941.0,56926.0,0.087828]
[1725979040170,0.011,56944.0,56926.0,0.37]
[1725979040464,0.011,56944.0,56943.0,0.087802]
[1725979040868,0.001,56944.0,56943.0,0.087802]
[1725979041260,0.001,56944.0,56943.0,0.545604]
[1725979041460,0.001,56944.0,56943.0,0.457802]
[1725979041667,0.147983,56956.0,56952.0,0.087787]
[1725979041668,0.087784,56955.0,56952.0,0.087787]
[1725979041857,0.147983,56956.0,56952.0,0.087787]
[1725979041858,0.087785,56954.0,56952.0,0.087787]
[1725979042061,0.087787,56953.0,56952.0,0.087787]
[1725979043166,0.3218,56959.0,56953.0,0.087787]
[1725979043167,0.001,56954.0,56953.0,0.087787]
[1725979043863,0.001,56954.0,56953.0,0.175574]
[1725979044070,0.001,56954.0,56953.0,0.614547]
[1725979044960,0.001,56954.0,56953.0,1.047787]
[1725979045164,0.001,56954.0,56953.0,1.574547]
[1725979045363,0.087776,56960.0,56957.0,0.08778]
[1725979045562,0.37,56958.0,56952.0,0.01552733]
[1725979045761,0.457787,56953.0,56952.0,0.01552733]
[1725979045971,0.457787,56953.0,56952.0,0.01452733]
[1725979046266,0.001,56954.0,56953.0,0.087787]
[1725979046670,0.001,56960.0,56953.0,0.087787]
[1725979046868,0.087787,56953.0,56952.0,0.01452733]
[1725979047068,0.087787,56953.0,56952.0,0.01352733]
[1725979047277,0.006,56954.0,56939.0,0.6909]
[1725979047465,0.006,56954.0,56944.0,0.37]
[1725979047665,0.006,56954.0,56952.0,0.087787]
[1725979047866,0.006,56954.0,56953.0,0.087787]
[1725979048185,0.096776,56960.0,56958.0,0.087778]
[1725979048376,1e-06,56960.0,56959.0,0.175556]
[1725979048672,0.20873731,56996.0,56959.0,0.175556]
[1725979048673,0.068,56982.0,56981.0,0.087744]
[1725979049062,0.068,56982.0,56971.0,0.96]
[1725979049468,0.155744,56982.0,56977.0,0.087748]
[1725979049668,0.155744,56982.0,56971.0,0.96]
[1725979049873,0.087734,56988.0,56971.0,0.96]
[1725979050071,0.001,56982.0,56981.0,0.001]
[1725979050376,0.088742,56982.0,56981.0,0.001]
[1725979050675,0.087758,56972.0,56959.0,0.087777]
[1725979050878,0.457751,56977.0,56970.0,0.087761]
[1725979051176,0.001,56982.0,56960.0,0.96]
[1725979051177,0.37252,56982.0,56960.0,0.96]
[1725979051476,0.385,56982.0,56971.0,0.001]
[1725979051668,0.08775,56977.0,56971.0,0.001]
[1725979052167,0.08775,56977.0,56973.0,0.087756]
[1725979052363,0.014,56982.0,56981.0,0.087744]
[1725979052773,0.014,56982.0,56971.0,0.001]
[1725979053274,0.384,56982.0,56975.0,0.087752]
[1725979053573,0.08775,56978.0,56971.0,0.002]
[1725979053775,0.08775,56978.0,56971.0,0.088759]
[1725979053968,0.08775,56978.0,56971.0,0.001]
[1725979054164,0.08775,56978.0,56975.0,0.087752]
[1725979054373,0.087751,56977.0,56971.0,0.088759]
[1725979054570,0.08775,56977.0,56971.0,0.001]
[1725979054771,0.08775,56977.0,56975.0,0.001]
[1725979055167,0.087751,56976.0,56975.0,0.001]
[1725979055374,0.457751,56976.0,56975.0,0.001]
[1725979055687,0.087758,56972.0,56971.0,0.002]
[1725979056377,0.087758,56972.0,56960.0,0.01358203]
[1725979056378,0.087774,56961.0,56960.0,0.01358203]
[1725979056672,0.087766,56967.0,56959.0,0.087777]
[1725979056673,0.087776,56960.0,56959.0,0.087777]
[1725979057267,0.37,56969.0,56949.0,0.05207852]
[1725979057475,0.087779,56958.0,56955.0,0.087783]
[1725979057672,0.087779,56959.0,56949.0,0.05207852]
[1725979057873,0.087779,56959.0,56958.0,0.087779]
[1725979058277,0.37,56969.0,56949.0,0.37]
[1725979058585,0.37,56969.0,56962.0,0.087773]
[1725979058586,0.087768,56966.0,56962.0,0.087773]
[1725979058873,0.001,56969.0,56949.0,0.42907852]
[1725979058874,0.087773,56963.0,56958.0,0.087778]
[1725979059275,0.002,56959.0,56958.0,0.087778]
[1725979059876,0.002,56959.0,56953.0,0.087785]
[1725979060186,0.087782,56956.0,56949.0,0.007]
[1725979060476,0.002,56959.0,56949.0,0.007]
[1725979060477,0.087785,56955.0,56949.0,0.007]
[1725979060675,0.457785,56954.0,56949.0,0.007]
[1725979060876,0.087791,56950.0,56949.0,0.007]
[1725979061270,0.1331,56953.0,56949.0,0.007]
[1725979061471,0.1331,56953.0,56944.0,0.01373872]
[1725979061678,0.1331,56953.0,56949.0,0.002]
[1725979061878,0.087792,56950.0,56949.0,0.002]
[1725979062584,0.087798,56946.0,56942.0,0.087804]
[1725979062787,0.087793,56950.0,56946.0,0.087797]
[1725979063584,0.089793,56950.0,56949.0,0.001]
[1725979064285,0.100793,56950.0,56949.0,0.002]
[1725979064483,1.315386,56950.0,56949.0,0.002]
[1725979065089,0.087813,56936.0,56934.0,0.13989452]
[1725979065386,0.087804,56942.0,56934.0,0.05207852]
[1725979065579,0.087795,56948.0,56937.0,0.37]
[1725979065894,0.102792,56950.0,56937.0,0.42207852]
[1725979066087,0.102792,56950.0,56938.0,0.05207852]
[1725979066088,0.087794,56949.0,56938.0,0.05207852]
[1725979066279,0.087794,56949.0,56939.0,0.05207852]
[1725979066591,0.013,56950.0,56949.0,0.087793]
[1725979067290,0.087788,56952.0,56949.0,0.087793]
[1725979067487,0.087777,56960.0,56949.0,0.087793]
[1725979067488,0.08779,56951.0,56950.0,0.087791]
[1725979067690,0.087791,56950.0,56949.0,0.001]
[1725979068187,0.087799,56946.0,56943.0,0.087802]
[1725979068387,0.101791,56950.0,56949.0,0.001]
[1725979068585,0.277373,56950.0,56949.0,0.001]
[1725979068890,0.277373,56950.0,56934.0,0.05207852]
[1725979068891,0.087815,56935.0,56934.0,0.05207852]
[1725979069094,0.087815,56935.0,56934.0,0.01331635]
[1725979069286,0.087815,56935.0,56931.0,0.05207852]
[1725979069478,0.37,56934.0,56929.0,0.05207852]
[1725979069682,0.087832,56924.0,56923.0,0.01361049]
[1725979069981,0.087818,56933.0,56916.0,0.05207852]
[1725979069982,0.37,56927.0,56916.0,0.05207852]
[1725979070183,0.087834,56923.0,56915.0,0.05207852]
[1725979070387,0.087834,56923.0,56912.0,0.05207852]
[1725979070589,0.087834,56923.0,56918.0,0.087839]
[1725979071092,0.087834,56923.0,56911.0,0.42207852]
[1725979071093,0.087838,56920.0,56911.0,0.01366904]
[1725979071279,0.37,56916.0,56909.0,0.087853]
[1725979071598,0.087853,56911.0,56906.0,0.087859]
[1725979071891,0.087862,56904.0,56902.0,0.05207852]
[1725979072087,0.087862,56904.0,56898.0,0.087871]
[1725979072088,0.087854,56910.0,56901.0,0.05207852]
[1725979072284,0.071,56915.0,56896.0,0.37]
[1725979072589,0.087849,56913.0,56909.0,0.01]
[1725979072887,0.001,56916.0,56910.0,0.087853]
[1725979073288,0.087852,56911.0,56909.0,0.01]
[1725979073489,0.37,56912.0,56909.0,0.01]
[1725979073682,0.001,56916.0,56909.0,0.01]
[1725979073889,0.087852,56911.0,56909.0,0.01]
[1725979074393,0.001,56916.0,56909.0,0.01]
[1725979074891,0.003,56910.0,56909.0,0.001]
[1725979075288,0.090853,56910.0,56909.0,0.001]
[1725979075490,0.090853,56910.0,56904.0,0.087862]
[1725979075491,0.003,56910.0,56904.0,0.087862]
[1725979075787,0.37,56912.0,56909.0,0.002]
[1725979076188,0.37,56912.0,56909.0,0.001]
[1725979076384,0.37,56912.0,56909.0,0.002]
[1725979076385,0.090853,56910.0,56909.0,0.002]
[1725979076784,0.096853,56910.0,56909.0,0.001]
[1725979077393,1.224013,56910.0,56909.0,0.001]
[1725979077589,0.096853,56910.0,56909.0,0.001]
[1725979077997,1.224013,56910.0,56909.0,0.001]
[1725979078479,0.096853,56910.0,56909.0,0.001]
[1725979078683,0.006,56910.0,56909.0,0.088855]